bitfinex/quotes_ETHUSD_20251212
["timestamp","ask_amount","ask_price","bid_price","bid_amount"]
[1765559415192,0.53,3090.8,3090.0,8.33365348]
[1765559415495,0.531,3091.4,3090.7,0.4888]
[1765559415890,0.531,3091.4,3090.8,6.4708166]
[1765559416067,0.531,3091.4,3090.8,9.7062249]
[1765559416270,0.6899,3090.9,3090.7,3.23549382]
[1765559416796,0.4911,3091.3,3090.7,6.47100681]
[1765559416982,0.4911,3091.3,3090.7,9.7065198]
[1765559417182,0.001,3091.4,3090.7,9.7065198]
[1765559417183,0.531,3091.4,3090.7,9.7065198]
[1765559417929,1.0221,3091.4,3090.5,3.23567225]
[1765559418506,0.001,3091.4,3090.6,8.65722071]
[1765559418885,0.001,3091.4,3091.1,8.33365348]
[1765559419191,0.001,3091.4,3091.3,0.5604]
[1765559419599,0.001,3091.4,3091.3,1.0585]
[1765559419981,0.001,3091.4,3091.3,4.29338499]
[1765559420225,0.001,3091.4,3091.3,5.93258885]
[1765559420406,0.001,3092.0,3091.3,15.63724382]
[1765559420593,0.001,3092.0,3091.9,0.4602]
[1765559421336,0.001,3092.0,3091.3,19.78291231]
[1765559421631,0.001,3092.0,3091.3,21.37859344]
[1765559421801,0.001,3092.0,3091.3,21.83849344]
[1765559422208,0.001,3092.5,3091.9,8.79385348]
[1765559422403,0.001,3092.5,3092.4,8.95795348]
[1765559422604,0.001,3092.5,3092.4,10.38374883]
[1765559422801,0.4999,3093.8,3092.4,10.84364883]
[1765559423118,0.448,3094.1,3093.7,8.33365348]
[1765559423514,0.6866,3094.0,3093.7,8.33365348]
[1765559424101,0.1867,3094.0,3093.8,3.23227099]
[1765559424305,0.4999,3093.9,3093.8,3.23227099]
[1765559424600,0.9522,3093.9,3093.8,3.23227099]
[1765559425327,0.4999,3094.3,3093.8,9.69681297]
[1765559425526,0.1932,3094.5,3094.3,8.33365348]
[1765559426027,0.6931,3094.5,3094.4,3.23164426]
[1765559426223,0.1932,3094.5,3094.4,3.23164426]
[1765559426637,0.181,3095.0,3094.4,14.26970034]
[1765559426843,0.6809,3095.9,3094.9,0.4602]
[1765559426996,0.181,3095.9,3095.3,8.33365348]
[1765559427339,0.53,3096.3,3095.3,8.33365348]
[1765559427542,0.4999,3096.2,3095.2,8.33365348]
[1765559428203,0.4999,3096.2,3095.3,9.69211383]
[1765559428720,0.53,3096.3,3095.3,12.92281844]
[1765559429199,0.003,3096.9,3096.2,8.33365348]
[1765559429623,0.003,3096.9,3095.4,1.20447529]
[1765559429624,0.003,3096.9,3096.7,8.33365348]
[1765559430008,0.003,3096.9,3096.7,9.32355348]
[1765559430199,0.003,3096.9,3096.8,3.22913975]
[1765559430401,0.003,3096.9,3096.8,3.68903975]
[1765559430917,0.003,3096.9,3096.8,3.22913975]
[1765559432233,0.003,3096.9,3096.8,13.1985335]
[1765559432440,0.003,3096.9,3096.8,12.09279323]
[1765559432798,0.003,3096.9,3096.8,11.56279323]
[1765559433025,0.003,3096.9,3096.8,12.09279323]
[1765559434209,0.003,3096.9,3096.8,12.55269323]
[1765559434421,0.184,3096.9,3095.6,3.23031116]
[1765559434730,0.184,3096.9,3096.8,3.22913975]
[1765559434903,0.6839,3096.9,3096.8,3.22913975]
[1765559435698,0.184,3096.9,3096.8,3.22913975]
[1765559435900,0.6839,3096.9,3096.8,3.22913975]
[1765559436210,0.6839,3096.9,3095.9,3.23000253]
[1765559436402,0.184,3096.9,3096.0,0.529]
[1765559436603,0.003,3096.9,3096.0,0.9889]
[1765559436804,0.3029,3097.3,3096.0,0.9889]
[1765559437005,0.003,3097.4,3096.0,0.4599]
[1765559437221,8.02132,3097.3,3096.0,0.529]
[1765559437445,0.003,3097.4,3096.0,0.529]
[1765559437608,0.003,3097.4,3096.6,8.33365348]
[1765559437910,0.003,3097.4,3096.7,0.4599]
[1765559438324,0.003,3097.4,3097.3,0.0985]
[1765559438911,0.003,3097.4,3096.8,9.68741925]
[1765559439312,0.4999,3097.3,3096.8,9.68741925]
[1765559439726,0.003,3097.4,3096.8,9.68741925]
[1765559440264,0.003,3097.4,3096.9,8.33365348]
[1765559440406,0.003,3097.4,3096.9,8.29423714]
[1765559440608,0.003,3097.4,3097.3,0.1581]
[1765559441019,0.003,3097.4,3097.3,0.618]
[1765559442344,0.003,3097.4,3097.3,3.84661847]
[1765559442510,0.003,3097.4,3097.3,4.6138786]
[1765559443409,0.003,3097.4,3097.3,5.1428786]
[1765559443824,0.001,3098.6,3097.5,8.29423714]
[1765559444047,0.001,3098.6,3097.4,8.98861882]
[1765559444242,0.001,3098.6,3097.5,0.529]
[1765559444445,0.001,3098.6,3097.6,17.09329078]
[1765559444964,0.001,3098.6,3097.7,9.51761882]
[1765559445116,0.181,3097.8,3097.6,6.45661156]
[1765559445450,6.885334,3098.4,3097.6,12.91322312]
[1765559445609,0.181,3097.7,3097.6,3.22830578]
[1765559445808,0.6809,3098.3,3097.6,12.91322312]
[1765559446317,0.6809,3098.3,3097.6,6.45661156]
[1765559446739,0.6809,3098.3,3097.5,6.45682]
[1765559446740,0.4999,3098.2,3097.5,6.45682]
[1765559447277,0.4999,3098.2,3096.7,3.75818738]
[1765559447558,0.181,3096.8,3096.1,9.68960949]
[1765559447919,0.6809,3096.8,3096.1,9.68960949]
[1765559448347,0.4999,3096.7,3095.9,6.46015698]
[1765559448524,5.463418,3096.4,3095.8,3.23015931]
[1765559448719,0.58047529,3096.5,3095.8,3.23015931]
[1765559448938,0.181,3095.9,3095.8,3.23015931]
[1765559449229,3.22884745,3097.1,3095.8,3.23015931]
[1765559449230,0.4999,3098.5,3096.7,0.1805]
[1765559449446,0.4999,3098.5,3096.8,0.532]
[1765559449651,0.4999,3098.5,3096.8,8.10845123]
[1765559449826,0.4999,3098.5,3096.8,7.57645123]
[1765559450024,0.4999,3098.5,3096.9,0.9919]
[1765559450554,0.4999,3098.5,3097.0,12.91572488]
[1765559450731,0.4999,3098.5,3097.0,9.68679366]
[1765559450929,0.4999,3098.5,3097.0,12.91572488]
[1765559451348,0.4999,3098.5,3097.0,9.68679366]
[1765559451739,2.62101529,3098.4,3097.0,6.45786244]
[1765559452250,0.1867,3097.1,3097.0,3.22893122]
[1765559452568,0.1867,3097.1,3096.1,3.76086376]
[1765559452866,0.6748,3097.1,3096.1,3.76086376]
[1765559453452,0.6748,3097.1,3096.1,3.22986376]
[1765559453828,0.1867,3097.4,3096.2,7.60825123]
[1765559454441,0.6748,3097.4,3096.3,12.9186448]
[1765559454854,0.4881,3097.3,3096.3,12.9186448]
[1765559455166,0.1867,3097.9,3096.8,7.11655123]
[1765559455352,0.1867,3097.9,3096.9,0.531]
[1765559455957,0.1867,3097.9,3096.3,16.148306]
[1765559455958,0.4881,3097.8,3096.3,16.148306]
[1765559456333,0.4881,3097.8,3096.3,3.2296612]
[1765559456538,7.338789,3097.7,3096.3,3.2296612]
[1765559456737,1.3136889,3097.6,3096.3,3.2296612]
[1765559456969,0.1867,3096.4,3096.2,6.45953102]
[1765559457547,0.6748,3096.4,3096.2,6.45953102]
[1765559458062,0.4881,3096.3,3095.6,3.23036827]
[1765559458240,0.4881,3096.3,3096.1,3.22984101]
[1765559458440,0.4881,3096.3,3095.5,0.002]
[1765559458640,0.1867,3095.7,3095.5,0.002]
[1765559459171,0.6748,3096.4,3095.5,0.002]
[1765559459772,0.1867,3096.4,3095.5,0.002]
[1765559460173,0.4881,3096.3,3095.5,0.002]
[1765559461673,0.1867,3097.0,3095.5,0.97138007]
[1765559461878,0.4881,3096.3,3095.5,0.97138007]
[1765559462644,0.4881,3096.3,3095.6,9.69117456]
[1765559463053,0.1867,3097.0,3095.6,16.1519576]
[1765559463258,0.1867,3097.0,3095.7,8.13925123]
[1765559463460,0.4881,3096.9,3095.7,8.13925123]
[1765559463856,0.4881,3096.9,3095.7,8.42774723]
[1765559464078,0.4881,3096.9,3095.8,2.45797048]
[1765559464456,0.4881,3096.9,3095.8,2.98897048]
[1765559464661,0.1867,3097.0,3096.2,7.93604723]
[1765559464982,0.531,3097.6,3096.2,7.93604723]
[1765559465180,0.1867,3097.9,3096.7,7.93604723]
[1765559465366,0.1867,3097.9,3097.2,7.93604723]
[1765559465743,0.1867,3097.9,3097.3,0.1805]
[1765559466150,0.001,3098.6,3097.0,0.531]
[1765559466151,0.4881,3098.2,3097.1,0.1805]
[1765559466374,0.4891,3098.6,3097.3,7.93604723]
[1765559466573,0.4891,3098.6,3097.4,0.531]
[1765559466788,0.4891,3098.6,3097.5,12.91364]
[1765559467146,0.4891,3098.6,3097.8,7.93604723]
[1765559467577,0.001,3098.6,3097.8,7.93604723]
[1765559468283,0.4881,3098.5,3097.5,9.68523]
[1765559468450,4.341808,3098.4,3097.5,6.45682]
[1765559468650,0.9710908,3098.3,3096.8,12.916559]
[1765559468845,0.4881,3098.3,3096.8,12.916559]
[1765559469081,0.4881,3098.2,3096.8,12.916559]
[1765559469585,0.4881,3098.2,3097.0,7.93604723]
[1765559469780,0.001,3098.6,3097.5,7.93604723]
[1765559469781,0.4891,3098.6,3097.5,7.93604723]
[1765559470161,0.4891,3098.6,3097.4,0.1805]
[1765559470681,0.4891,3098.6,3097.5,12.91364]
[1765559471348,0.001,3098.6,3097.8,7.93604723]
[1765559471552,0.001,3098.6,3097.5,18.62102614]
[1765559471553,0.4881,3098.5,3097.5,19.15102614]
[1765559471751,0.4881,3098.5,3097.5,16.67205]
[1765559472058,0.4881,3098.5,3097.5,12.91364]
[1765559472274,0.4881,3098.5,3097.5,13.44364]
[1765559472460,0.001,3098.6,3097.5,17.16375]
[1765559472778,0.4911,3099.9,3098.5,7.29063455]
[1765559473041,0.4911,3099.9,3098.5,8.31233455]
[1765559473181,0.58047529,3098.4,3096.3,0.1805]
[1765559473515,0.1867,3096.4,3095.7,3.23028717]
[1765559473670,0.1867,3096.4,3095.7,6.46057434]
[1765559474564,0.1867,3096.4,3095.7,3.23028717]
[1765559474765,0.1867,3096.4,3095.3,6.46134963]
[1765559474989,0.531,3096.4,3095.5,0.64833496]
[1765559475169,1.0191,3096.4,3095.5,0.64833496]
[1765559475484,0.531,3096.5,3095.5,0.64833496]
[1765559475663,0.1867,3095.6,3095.5,0.002]
[1765559475864,8.44945103,3095.5,3093.7,0.1805]
[1765559476089,9.51802632,3095.5,3093.2,3.23281865]
[1765559476292,0.05,3095.2,3092.7,3.23339047]
[1765559476476,0.05,3095.2,3092.7,0.4917]
[1765559476791,0.05,3095.2,3092.9,6.46642308]
[1765559476792,0.58047529,3094.9,3092.9,6.46642308]
[1765559477191,0.4881,3094.8,3092.9,6.46642308]
[1765559477769,0.405504,3094.6,3092.9,6.46642308]
[1765559477963,0.3440336,3094.6,3093.0,0.64664231]
[1765559478163,0.4637,3094.5,3093.0,0.64664231]
[1765559478973,4.91297,3094.2,3093.1,6.46600496]
[1765559479163,0.4637,3094.5,3093.1,6.46600496]
[1765559479164,2.092464,3094.0,3093.1,6.46600496]
[1765559479368,0.531,3093.9,3093.2,0.71126473]
[1765559481172,0.531,3093.9,3093.3,6.4655869]
[1765559481372,0.531,3093.9,3093.3,9.69838035]
[1765559481588,0.4519,3093.8,3093.3,3.23279345]
[1765559482271,0.1884,3094.1,3093.3,3.23279345]
[1765559482477,0.1884,3094.1,3093.3,6.78886625]
[1765559482789,0.531,3094.0,3093.3,10.0216597]
[1765559483167,0.531,3094.0,3093.3,3.18279345]
[1765559483707,0.1884,3094.1,3093.3,3.18279345]
[1765559483868,0.531,3093.9,3093.2,9.69869388]
[1765559484379,0.531,3093.9,3093.2,10.18849388]
[1765559484717,0.531,3093.9,3093.2,9.69869388]
[1765559484871,0.531,3093.8,3093.2,9.69869388]
[1765559485069,2.313345,3094.3,3093.2,9.69869388]
[1765559485272,0.531,3094.2,3093.2,6.46579592]
[1765559485509,0.9829,3094.2,3093.2,3.23289796]
[1765559485904,0.9829,3094.2,3093.2,6.46579592]
[1765559485905,0.4519,3094.1,3093.2,6.46579592]
[1765559486292,3.156745,3094.0,3093.2,3.23289796]
[1765559486474,3.156745,3094.0,3093.2,6.46579592]
[1765559486676,0.531,3093.9,3093.2,6.46579592]
[1765559486984,0.0035,3094.9,3093.2,10.34527347]
[1765559487177,0.4519,3094.4,3093.2,10.34527347]
[1765559487506,0.531,3094.3,3093.2,10.34527347]
[1765559487800,0.531,3094.3,3093.2,13.57817143]
[1765559487984,0.531,3094.3,3093.2,10.34527347]
[1765559488181,0.532,3094.2,3093.3,1.05257735]
[1765559488980,0.522,3094.2,3093.3,1.05257735]
[1765559489379,0.522,3094.2,3093.4,9.69806685]
[1765559489581,0.531,3094.1,3093.4,9.69806685]
[1765559490484,0.9829,3094.1,3093.4,6.4653779]
[1765559491082,0.4519,3094.1,3093.4,9.69806685]
[1765559491291,0.1884,3094.5,3093.4,9.69806685]
[1765559491292,0.531,3094.0,3093.4,11.05581888]
[1765559491488,0.6403,3094.5,3093.4,11.05581888]
[1765559491688,0.531,3094.4,3093.4,11.05581888]
[1765559492389,0.9829,3094.4,3093.4,11.05581888]
[1765559492986,0.9829,3094.4,3093.2,1.13637959]
[1765559492987,6.650762,3093.4,3092.0,0.1944]
[1765559493189,0.4519,3094.3,3092.1,9.88344415]
[1765559493190,3.094009,3093.6,3092.1,9.88344415]
[1765559493501,0.531,3094.0,3092.7,12.93368252]
[1765559493695,0.531,3094.0,3092.7,16.69810315]
[1765559494018,0.4554,3094.9,3093.9,0.1813]
[1765559494195,0.531,3094.6,3093.9,8.12862708]
[1765559494400,0.531,3094.6,3094.0,0.4898]
[1765559494812,0.531,3094.6,3094.1,0.1813]
[1765559495190,0.531,3094.6,3094.1,0.6711]
[1765559495418,0.0035,3094.9,3094.1,0.6711]
[1765559495719,0.0035,3094.9,3094.8,7.94732708]
[1765559495908,0.0035,3094.9,3094.4,7.94732708]
[1765559496307,0.0035,3094.9,3094.8,7.94732708]
[1765559496510,0.0682494,3096.6,3095.4,7.94732708]
[1765559496727,0.0682494,3096.6,3096.3,7.94732708]
[1765559497221,0.0682494,3096.6,3096.3,8.43712708]
[1765559497622,0.0682494,3096.6,3096.4,3.2295569]
[1765559499128,0.4519,3096.5,3094.9,0.6711]
[1765559499424,0.531,3096.4,3096.3,3.22964213]
[1765559499826,0.0682494,3096.6,3096.0,0.1813]
[1765559500928,0.0682494,3096.6,3095.5,1.0208]
[1765559501127,0.0682494,3096.6,3095.6,0.4898]
[1765559501828,0.4519,3096.6,3095.7,6.46057434]
[1765559502230,0.1899,3095.8,3094.9,0.1813]
[1765559502397,0.1899,3095.8,3095.6,3.23038639]
[1765559502728,0.4519,3096.3,3095.6,9.69116943]
[1765559502896,0.1899,3096.9,3095.6,9.69116943]
[1765559502897,0.1899,3096.9,3095.6,13.89067789]
[1765559503229,0.1899,3096.9,3095.7,0.4898]
[1765559503730,0.1899,3096.9,3095.8,9.69054846]
[1765559504536,0.4519,3096.8,3095.8,6.46036564]
[1765559504722,0.89207604,3096.8,3095.8,6.46036564]
[1765559505026,0.89207604,3096.8,3095.8,9.69054846]
[1765559505227,0.4519,3096.8,3095.8,9.69054846]
[1765559505818,0.4519,3096.8,3095.8,3.23018282]
[1765559506017,0.1899,3095.9,3094.1,0.1813]
[1765559506206,0.531,3095.8,3095.6,3.23039152]
[1765559506411,0.7209,3095.9,3095.6,6.46078304]
[1765559506629,0.7209,3095.9,3095.6,3.23039152]
[1765559506929,0.4519,3095.8,3094.6,3.23139087]
[1765559507097,0.4519,3095.8,3095.2,3.23077514]
[1765559507295,0.4519,3095.8,3095.3,3.23069466]
[1765559507502,0.531,3095.7,3095.1,3.23086978]
[1765559507799,0.531,3095.7,3094.7,6.46266196]
[1765559508001,0.4519,3095.6,3094.7,6.46266196]
[1765559508308,0.531,3095.7,3094.7,10.37257305]
[1765559508509,0.1899,3095.9,3094.7,10.37257305]
[1765559508714,5.987444,3095.8,3094.7,9.69399294]
[1765559508909,5.642141,3095.8,3094.7,9.69399294]
[1765559509142,4.447069,3095.8,3094.7,9.69399294]
[1765559509325,1.1728,3095.9,3094.7,9.69399294]
[1765559509905,1.1728,3095.9,3094.7,6.46266196]
[1765559510100,0.7209,3095.9,3094.8,1.76855328]
[1765559510628,0.1899,3095.9,3094.8,1.76855328]
[1765559510833,0.1899,3095.9,3094.8,1.29255328]
[1765559511003,0.4621,3095.8,3094.6,6.4628708]
[1765559511609,0.4621,3095.8,3094.6,9.6943062]
[1765559511899,0.531,3095.7,3094.6,3.2314354]
[1765559512106,0.531,3095.7,3094.7,0.476]
[1765559512328,0.531,3095.8,3094.8,0.37074354]
[1765559512632,4.22328282,3095.8,3094.4,9.69484378]
[1765559513030,0.4621,3095.7,3094.4,9.69484378]
[1765559513224,0.4621,3095.7,3094.4,13.40248804]
[1765559513434,0.9931,3095.7,3094.4,13.40248804]
[1765559514136,0.4621,3095.6,3094.4,13.40248804]
[1765559514305,0.4621,3095.6,3094.5,1.3402488]
[1765559514706,0.1851,3094.6,3094.4,3.23164013]
[1765559514935,0.1851,3094.6,3094.3,3.23166943]
[1765559515106,0.1851,3094.6,3094.3,3.23168679]
[1765559515507,0.1851,3094.6,3094.4,3.23161297]
[1765559515935,0.1851,3094.9,3094.4,7.10959475]
[1765559516107,0.1851,3094.9,3094.4,6.46325723]
[1765559516735,0.531,3095.0,3094.4,6.46325723]
[1765559517446,0.4621,3096.0,3094.5,0.476]
[1765559517611,0.652,3095.9,3094.5,0.476]
[1765559517809,0.652,3095.9,3094.7,9.69399294]
[1765559518020,0.652,3095.9,3094.7,10.76409223]
[1765559518212,0.4621,3095.8,3094.7,10.76409223]
[1765559518425,0.4621,3095.8,3094.7,9.69399294]
[1765559518842,0.4621,3095.8,3094.7,6.46266196]
[1765559519633,0.4621,3095.8,3094.7,9.69399294]
[1765559519830,0.4621,3095.8,3094.7,6.46266196]
[1765559520139,3.373947,3095.7,3094.6,3.23135067]
[1765559520476,0.1851,3094.7,3094.5,3.23153341]
[1765559520768,1.02965135,3095.6,3094.5,9.69461946]
[1765559521041,0.1851,3095.9,3094.6,9.58721706]
[1765559521207,0.531,3096.1,3094.6,9.55490271]
[1765559521407,0.531,3096.1,3094.7,0.476]
[1765559521618,0.531,3096.1,3094.8,0.95549027]
[1765559521821,5.282193,3095.9,3094.8,0.95549027]
[1765559522138,0.4621,3096.0,3094.9,9.69336648]
[1765559522438,0.1851,3095.9,3094.9,9.69336648]
[1765559522838,0.531,3096.1,3095.0,0.476]
[1765559523144,0.531,3096.1,3095.1,1.52134886]
[1765559524011,0.531,3096.1,3095.2,9.69242697]
[1765559524240,0.4621,3096.8,3095.3,0.531]
[1765559524460,0.7209,3096.9,3095.4,0.476]
[1765559524953,0.4621,3096.8,3095.4,0.476]
[1765559525643,0.1929,3097.3,3096.7,0.1813]
[1765559525860,0.003,3097.3,3096.7,0.1813]
[1765559526143,0.003,3097.3,3096.8,9.68741925]
[1765559526443,0.003,3097.3,3096.9,1.56547192]
[1765559526655,0.003,3097.3,3096.9,2.04147192]
[1765559526834,0.003,3097.3,3097.0,1.007]
[1765559527346,0.003,3097.3,3096.8,6.4582795]
[1765559527646,0.003,3097.3,3096.9,9.02390271]
[1765559527944,0.003,3097.3,3097.1,3.22882696]
[1765559528240,0.003,3097.3,3096.6,3.22930871]
[1765559528241,0.4651,3097.3,3096.6,3.22933889]
[1765559528443,0.4651,3097.3,3096.5,0.7123]
[1765559528666,0.4651,3097.3,3094.8,0.95549027]
[1765559528667,0.1851,3096.6,3094.8,0.95549027]
[1765559528816,0.1851,3095.9,3094.8,3.23117964]
[1765559529011,0.1851,3095.9,3094.9,0.32311796]
[1765559529226,0.531,3095.8,3094.9,0.32311796]
[1765559529633,0.531,3095.8,3094.5,0.476]
[1765559529838,0.531,3095.8,3094.8,3.23119323]
[1765559530033,0.531,3095.8,3094.5,0.476]
[1765559530034,0.531,3095.8,3094.6,6.4628708]
[1765559530421,3.76118682,3095.8,3094.6,6.4628708]
[1765559530629,0.1851,3095.9,3094.7,0.476]
[1765559530817,0.1851,3096.6,3094.7,0.476]
[1765559530818,0.6472,3096.6,3095.2,8.54790271]
[1765559531038,0.531,3096.5,3095.2,8.54790271]
[1765559531238,0.531,3096.5,3095.3,0.6573]
[1765559531743,0.4621,3096.4,3095.3,0.1813]
[1765559531944,0.9931,3096.4,3095.3,0.1813]
[1765559532248,0.531,3096.4,3095.4,6.46120048]
[1765559532547,0.531,3096.4,3095.4,3.58600114]
[1765559532746,0.4621,3096.8,3095.5,0.476]
[1765559533077,4.22224053,3096.8,3095.5,0.476]
[1765559533555,8.212327,3096.6,3095.4,0.3554009]
[1765559533720,7.296327,3096.6,3095.4,0.3554009]
[1765559533921,1.93687073,3096.6,3095.4,0.3554009]
[1765559534266,1.93687073,3096.6,3093.7,0.1813]
[1765559534267,0.1851,3095.5,3093.7,0.1813]
[1765559534447,0.1851,3094.9,3093.1,0.476]
[1765559534747,0.58047529,3094.8,3093.3,0.476]
[1765559534963,0.58047529,3094.8,3093.7,3.23237547]
[1765559535116,0.58047529,3094.8,3093.8,0.32323755]
[1765559535322,0.1851,3094.9,3093.8,0.32323755]
[1765559535563,2.053981,3095.4,3093.9,0.476]
[1765559535725,0.4621,3095.3,3093.9,1.007]
[1765559536123,0.4621,3095.3,3094.0,0.476]
[1765559537151,0.7161,3095.5,3094.1,6.46391518]
[1765559537354,0.1851,3095.9,3094.2,0.69399152]
[1765559537655,3.2295681,3096.4,3094.7,8.54790271]
[1765559537826,3.2295681,3096.4,3094.8,0.531]
[1765559538150,0.4811,3096.3,3094.6,0.58047529]
[1765559538351,0.58047529,3096.1,3094.7,0.531]
[1765559538652,1.00915016,3096.1,3094.7,0.531]
[1765559538948,0.4811,3096.0,3094.5,8.54790271]
[1765559539150,3.23007849,3095.9,3094.6,9.6943062]
[1765559539352,3.23007849,3095.9,3094.7,0.531]
[1765559539540,3.23007849,3095.9,3094.6,6.4628708]
[1765559539746,0.4811,3095.9,3094.6,10.7240062]
[1765559539944,0.4811,3095.9,3094.7,1.07240062]
[1765559540454,0.58047529,3096.1,3094.8,0.4558]
[1765559541254,3.22997416,3096.0,3094.9,6.46224432]
[1765559541462,6.94104832,3096.0,3094.9,6.46224432]
[1765559541649,0.4811,3095.9,3094.9,6.46224432]
[1765559541849,0.98597929,3095.7,3093.8,0.32323755]
[1765559542027,0.1844,3094.9,3093.7,3.76237394]
[1765559542355,0.1844,3095.6,3093.9,8.54790271]
[1765559542556,0.1844,3095.6,3094.8,3.23122657]
[1765559542756,0.4811,3095.5,3093.9,9.00370271]
[1765559543084,8.44945103,3095.4,3094.4,3.23157291]
[1765559543370,6.46140922,3095.3,3094.1,3.23195759]
[1765559543675,3.23070461,3095.3,3094.2,0.37619576]
[1765559543965,3.71170691,3095.4,3094.2,1.02249576]
[1765559544259,0.58047529,3095.5,3094.2,1.02249576]
[1765559544485,0.7144,3095.6,3094.3,0.4558]
[1765559544975,1.24597529,3095.9,3094.5,8.54790271]
[1765559545271,6.64459444,3095.9,3094.7,6.46266196]
[1765559545472,3.41449722,3095.9,3094.8,0.53]
[1765559546473,6.64459444,3095.9,3094.8,0.53]
[1765559546666,3.89559722,3095.9,3094.8,0.53]
[1765559546976,0.6655,3095.9,3094.8,0.53]
[1765559547183,0.6655,3095.9,3094.9,1.02239929]
[1765559547361,0.6655,3095.9,3095.0,6.46203554]
[1765559548168,1.06157529,3095.8,3094.2,0.37619576]
[1765559548361,1.06157529,3095.8,3094.3,0.53]
[1765559548686,0.4811,3095.7,3094.3,0.53]
[1765559549051,0.4811,3095.7,3094.4,3.23156411]
[1765559549248,0.53,3095.6,3094.2,3.23179377]
[1765559549617,0.405504,3094.9,3093.2,0.002]
[1765559549891,0.1754,3093.7,3093.2,0.002]
[1765559550378,0.1754,3094.0,3093.3,3.23270143]
[1765559550610,0.1844,3094.3,3093.3,0.53]
[1765559550750,0.1844,3094.3,3093.6,3.23447862]
[1765559550953,0.1844,3094.3,3093.6,3.55792648]
[1765559551450,2.039,3094.4,3093.6,3.55792648]
[1765559551884,3.41585303,3094.6,3093.6,6.79040643]
[1765559551885,0.1844,3094.6,3093.6,6.79040643]
[1765559552186,4.86,3094.9,3093.7,0.4558]
[1765559552495,4.86,3094.9,3093.8,1.57786864]
[1765559552661,3.88754674,3095.0,3093.8,1.57786864]
[1765559552859,0.1754,3095.0,3093.9,0.4558]
[1765559553158,3.40647619,3095.0,3094.0,0.53]
[1765559553485,3.40647619,3095.0,3093.6,0.002]
[1765559553486,4.81222,3094.7,3093.6,0.002]
[1765559553688,0.4811,3094.9,3093.6,0.002]
[1765559553888,0.4811,3094.9,3093.7,0.4558]
[1765559554061,0.4811,3094.9,3093.8,0.53]
[1765559554261,3.71223188,3094.9,3093.8,0.53]
[1765559554487,3.71223188,3094.9,3093.9,0.53]
[1765559554662,0.4811,3094.9,3093.9,0.53]
[1765559555063,0.1754,3095.0,3093.9,0.9858]
[1765559555465,0.1754,3095.0,3094.0,9.69618615]
[1765559555684,0.1754,3095.0,3094.1,1.06819862]
[1765559555884,0.4811,3095.4,3094.1,1.71449862]
[1765559556397,0.0682494,3096.1,3094.1,1.71449862]
[1765559556398,3.71048422,3096.6,3095.3,8.73281541]
[1765559556703,3.71050157,3096.6,3095.4,0.53]
[1765559556990,0.4811,3097.0,3095.4,1.91208154]
[1765559557287,0.58047529,3096.9,3095.5,0.53]
[1765559557493,3.22913975,3096.8,3095.6,6.46078304]
[1765559557801,4.693509,3095.4,3093.5,3.23254328]
[1765559558101,0.1844,3094.8,3093.7,0.32345433]
[1765559558611,0.1844,3094.8,3093.7,6.78820527]
[1765559558958,0.1844,3094.8,3093.7,10.02058074]
[1765559559291,0.58047529,3095.6,3094.2,8.55151541]
[1765559559503,0.39213513,3095.5,3094.3,9.69524607]
[1765559559694,4.82276435,3095.8,3094.3,13.91379476]
[1765559559890,4.82276435,3095.8,3094.4,0.6463]
[1765559560081,7.57185341,3095.8,3094.4,0.1905]
[1765559560283,7.57185341,3095.8,3094.2,3.23184832]
[1765559560284,0.58047529,3095.5,3094.2,3.23184832]
[1765559560495,0.5493494,3095.7,3093.8,0.531]
[1765559560496,0.58047529,3095.3,3093.8,0.531]
[1765559560699,2.644983,3095.0,3094.1,3.23186294]
[1765559560884,8.363488,3094.9,3094.1,3.23192725]
[1765559561199,0.7154,3095.2,3094.2,6.46366127]
[1765559561505,6.46203554,3095.0,3094.0,3.23199593]
[1765559561701,6.46203554,3095.0,3094.0,3.23199532]
[1765559561998,6.94313554,3095.0,3094.1,3.23192278]
[1765559562202,0.7154,3095.2,3094.2,3.23182621]
[1765559562203,3.23094756,3095.1,3094.2,3.23182621]
[1765559562368,4.47057529,3095.0,3093.6,0.002]
[1765559562670,12.92372186,3095.1,3093.6,0.002]
[1765559562671,0.98597929,3094.6,3093.6,0.002]
[1765559562874,0.405504,3094.4,3093.6,0.002]
[1765559563276,0.405504,3094.2,3093.6,0.002]
[1765559563583,4.249606,3093.9,3093.6,0.002]
[1765559563798,1.11147529,3093.8,3093.6,0.002]
[1765559564000,9.05455527,3093.7,3093.6,0.002]
[1765559564174,9.53565527,3093.7,3093.6,0.002]
[1765559564372,10.5423208,3093.7,3093.6,0.002]
[1765559565413,13.77469627,3093.7,3093.6,0.002]
[1765559565872,13.89187129,3093.7,3093.6,0.002]
[1765559566077,4.29395076,3093.7,3093.6,0.002]
[1765559566707,0.1844,3095.2,3093.6,0.002]
[1765559566915,0.4811,3094.5,3093.6,0.002]
[1765559567484,0.58047529,3094.2,3093.6,0.002]
[1765559567682,1.11147529,3094.2,3093.6,0.002]
[1765559567917,1.59257529,3094.2,3093.6,0.002]
[1765559569414,3.23045806,3095.6,3093.6,0.002]
[1765559569611,3.71201337,3095.1,3093.6,0.4578]
[1765559569914,0.58047529,3095.0,3093.6,0.4578]
[1765559570115,0.58047529,3095.0,3093.7,0.531]
[1765559570533,0.58047529,3095.1,3093.8,0.4954]
[1765559570819,3.99570222,3095.2,3093.8,0.4954]
[1765559571187,0.4808,3095.1,3093.6,0.002]
[1765559571399,0.4808,3095.1,3093.7,0.531]
[1765559571713,0.58047529,3094.9,3093.8,6.46454198]
[1765559573117,0.58047529,3094.7,3093.8,6.46454198]
[1765559573490,0.58047529,3094.8,3093.8,6.46454198]
[1765559574108,0.38116229,3094.7,3093.8,6.46454198]